{"text_format":"1","workbook":"xlsx","n_sheets":1,"sheets":["Лист2"],"not_rendered":{"charts":0,"images":0,"macros":0,"external_links":0,"defined_names":0,"comments":0,"pivot_tables":0},"unopened":[],"bounds":{"document_bytes":16777216,"sheet_cells":100000,"rows_first":2000,"rows_last":500,"rows_between":2000,"halvings":0,"cell_chars":16384,"cell_head_chars":4096},"cells_cut":0,"cells_raw":0,"read":"whole","date_system":"1900"}

{"sheet":"Лист2","index":0,"n_rows":21,"n_cols":19,"rows_kept":21,"cut":false,"hidden":false,"merged":[[17,15,17,16],[15,1,15,12],[15,13,15,16],[16,13,16,14],[16,15,16,16],[17,13,17,14],[0,1,0,7],[3,2,3,17],[0,13,0,17],[6,4,7,4],[6,11,7,11],[6,9,7,9],[6,5,7,5],[6,7,7,7],[6,10,7,10],[6,1,7,1],[6,8,7,8],[6,12,6,18],[6,2,7,2],[6,3,7,3],[6,6,7,6]]}
[null,null,null,null,null,null,null,null,null,null,null,null,null,"УТВЕРЖДЕН\nприказом комитета по местному самоуправлению,\nмежнациональным и межконфессиональным отношениям Ленинградской области\nот \"04\" июня 2015 года N 10(приложение 6)\n"]
[]
[null,null,null,null,null,null,null,null,null,"ОТЧЕТ"]
[null,null,"     об использовании субсидии, предоставленной из областного бюджета Ленинградской области муниципальному образованию Селивановское сельское поселение  на реализацию проектов местных инициатив граждан в рамках подпрограммы «Создание условий для эффективного выполнения органами местного самоуправления своих полномочий» государственной программы Ленинградской области «Устойчивое общественное развитие в Ленинградской области», за   2016 год"]
[]
[]
[null,"Код по бюджетной классификации бюджета, предостав-ляющего межбюджетный трансферт","Код по классификации доходов бюджета, получающего межбюджетный трансферт","Утверждено бюджетных назначений на 2016  год (областной и местный бюджет)","Поступило средств областного бюджета","Произведено расходов (кассовые расходы)","Размер софинансирования из местного бюджета","Расходы, подтвержденные документами и произведенные за счет средств областного бюджета","Расходы, подтвержденные документами и произведенные за счет средств местного бюджета","Неиспользо-ванный остаток межбюджетного трансферта, подлежащий возврату","Наименование мероприятия",null,"Принятые бюджетные обязательства"]
[null,null,null,null,null,null,null,null,null,null,null,null,"контрагент","номер и дата договора","наименование работ","сумма договора","выполнено работ (сумма)","номер, дата акта выпол-ненных работ","Фактические показатели результативности использования субсидии"]
[null,"891 0409 0710170880 244 225","891 0409 07101S0880 244 225",343210,326980,null,16230,311375,16388.64,{"$f":"E9-H9","v":15605},"1. Ремонт дороги в д.Низино",null,"ООО \"РемСЭД\"","Муниципальный контракт №0145300028416000006-0209171-01 от 08.07.2016","Ремонт участка автодороги в дер.Низино",327763.64,{"$f":"P9","v":327763.64},"№1 от 31.08.16","0,286/858/100%"]
[null,"891 0409 0710170880 244 225","891 0409 07101S0880 244 225",98000,93300,null,4700,93093.35,4899.6499999999996,206.64999999999418,"2. Ремонт дороги в д.Жуковщина",null,"ООО \"РемСЭД\"","Договор №27/ПО-1-16 от 02.09.2016 ","Ремонт участка автодороги в дер.Жуковщина",97993,97993,"№1 от 12.09.2016","0,082/245/100%"]
[null,"891 0409 0710170880 244 225","891 0409 07101S0880 244 225",49000,46650,null,2350,46535,2450,115,"3. Ремонт дороги в д.Остров",null,"ООО \"РемСЭД\"","Договор №27/ПО-1-16 от 06.10.16 ","Ремонт участка автодороги в дер.Остров",48985,48985,"№1 от 12.10.2016","0,041/122,5/100%"]
[null,"891 0409 0710170880 244 225","891 0409 07101S0880 244 225",98000,93300,null,4700,93093.35,4899.6499999999996,206.64999999999418,"4. Ремонт дороги в д.Лунгачи",null,"ООО \"РемСЭД\"","Договор №24/ПО-16 от 23.08.2016","Ремонт участка автодороги в дер.Лунгачи ",97993,97993,"№1 от 01.09.2016","0,082/245/100%"]
[null,"891 0409 0710170880 244 225","891 0409 07101S0880 244 225",49000,46650,null,2350,46535,2450,115,"5. Ремонт дороги в д.Антипово",null,"ООО \"РемСЭД\"","Договор №26 /ПО-1-16 от 03.10.2016","Ремонт участка автодороги в дер. Антипово",48985,48985,"№1 от 12.10.2016","0,041/122,5/100%"]
[null,"891 0409 0710170880 244 225","891 0409 07101S0880 244 225",49000,46650,null,2350,46535,2450,{"$f":"E14-H14","v":115},"6. Ремонт дороги в д.Телжево",null,"ООО \"РемСЭД\"","Договор №28/ПО-1-16 от 10.10.2016","Ремонт участка автодороги в дер.Телжево",48985,48985,"№1 от 12.10.2016","0,041/122,5/100%"]
[null,"ИТОГО",null,{"$f":"SUM(D9:D14)","v":686210},{"$f":"SUM(E9:E14)","v":653530},null,{"$f":"SUM(G9:G14)","v":32680},{"$f":"SUM(H9:H14)","v":637166.69999999995},{"$f":"SUM(I9:I14)","v":33537.94},{"$f":"SUM(J9:J14)","v":16363.299999999988},null,null,null,null,null,{"$f":"SUM(P9:P14)","v":670704.64000000001},{"$f":"SUM(Q9:Q14)","v":670704.64000000001}]
[null,"Глава администрации МО Селивановское сельское \nпоселение Волховского муниципального района Ленинградской области                    __________        Цыпарков А.И\n                                                                   (подпись)          (фамилия, инициалы)\nГлавный бухгалтер                            ___________          Мухсидинова М.Н\n                                                                    (подпись)       (фамилия, инициалы)\n",null,null,null,null,null,null,null,null,null,null,null,"Согласовано:                                                                   комитет  по местному самоуправлению, межнациональным и межконфессиональным отношениям Ленинградской области                                                                                                                                                                                                                                                                                                                                                                                                                                                                                                                                                                                                                         "]
[null,null,null,null,null,null,null,null,null,null,null,null,null,"_____________",null,"Бурак Л.В."]
[null,null,null,null,null,null,null,null,null,null,null,null,null,"(подпись)                           "]
[null,"Исполнитель                   ",null,"Мухсидинова М.Н",null,null,null,"8(81363)39-133"]
[null,"                                                (фамилия, инициалы)   (номер телефона)"]
[null,"__ ____________ 201__ года"]